fUST/lending_fUST_20240328
["ID","MTS","AMOUNT","RATE_DAILY","PERIOD"]
[320813005,1711566638818,-500.0,0.00037739,4]
[320813006,1711566638828,-500.0,0.00037739,4]
[320813007,1711566638837,-500.0,0.00037739,4]
[320813008,1711566638846,-585.4,0.00037739,4]
[320813009,1711566638854,-994.98,0.00037739,4]
[320813010,1711566638863,-793.24,0.00037739,4]
[320813011,1711566638873,-849.22,0.00037739,4]
[320813012,1711566638882,-500.0,0.00037739,4]
[320813013,1711566638891,-547.7785225,0.000379,2]
[320813014,1711566638900,-1114.38,0.00038354,7]
[320813015,1711566638909,-731.16,0.00038354,4]
[320813016,1711566638918,-500.0,0.00038354,4]
[320813017,1711566638926,-500.0,0.00038354,4]
[320813018,1711566638936,-500.0,0.00039451,4]
[320813019,1711566638945,-500.0,0.00039452,4]
[320813020,1711566638954,-500.0,0.00039452,4]
[320813021,1711566638963,-1459.26,0.00039452,4]
[320813022,1711566638972,-1085.08,0.00039452,2]
[320813023,1711566638982,-5169.45,0.00039452,4]
[320813024,1711566638991,-1152.83,0.00039452,4]
[320813025,1711566639000,-6250.0,0.00040183,120]
[320813026,1711566639009,-500.0,0.00040479,4]
[320813027,1711566639018,-500.0,0.00040479,4]
[320813028,1711566639028,-500.0,0.00040479,4]
[320813029,1711566639037,-585.4,0.00040479,4]
[320813030,1711566639047,-994.98,0.00040479,4]
[320813031,1711566639056,-793.24,0.00040479,4]
[320813032,1711566639065,-849.22,0.00040479,4]
[320813033,1711566639074,-500.0,0.00040479,4]
[320813034,1711566639085,-731.16,0.00041093,4]
[320813035,1711566639094,-500.0,0.00041093,4]
[320813036,1711566639103,-500.0,0.00041093,4]
[320813037,1711566639114,-1114.38,0.00041094,7]
[320813038,1711566639123,-500.0,0.00041096,31]
[320813039,1711566639132,-383.60291451,0.00041096,31]
[320813040,1711566639142,-500.0,0.00041096,31]
[320813041,1711566639151,-500.0,0.00041096,31]
[320813042,1711566639160,-500.0,0.00041096,31]
[320813043,1711566639169,-370.72715213,0.00041096,31]
[320813044,1711566639178,-5303.37,0.0004189,4]
[320813045,1711566639187,-500.0,0.00042191,4]
[320813046,1711566639196,-73165.92314823,0.00042192,3]
[320813047,1711566639205,-500.0,0.00042192,4]
[320813048,1711566639214,-500.0,0.00042192,4]
[320813049,1711566639223,-1459.26,0.00042192,4]
[320813050,1711566639235,-1085.08,0.00042192,2]
[320813051,1711566639244,-5169.45,0.00042192,4]
[320813052,1711566639253,-1152.83,0.00042192,4]
[320813053,1711566639263,-1625.44585659,0.000424,120]
[320813054,1711566639272,-500.0,0.00043218,4]
[320813055,1711566639282,-500.0,0.00043218,4]
[320813056,1711566639291,-500.0,0.00043218,4]
[320813057,1711566639300,-585.4,0.00043218,4]
[320813058,1711566639309,-994.98,0.00043218,4]
[320813059,1711566639319,-793.24,0.00043218,4]
[320813060,1711566639331,-849.22,0.00043218,4]
[320813061,1711566639340,-500.0,0.00043218,4]
[320813062,1711566639350,-1114.38,0.00043833,7]
[320813063,1711566639359,-731.16,0.00043833,4]
[320813064,1711566639369,-500.0,0.00043833,4]
[320813065,1711566639379,-500.0,0.00043833,4]
[320813066,1711566639390,-5303.37,0.0004463,4]
[320813068,1711566639399,-500.0,0.00044931,4]
[320813070,1711566639408,-500.0,0.00044931,4]
[320813072,1711566639418,-1459.26,0.00044931,4]
[320813074,1711566639427,-1085.08,0.00044931,2]
[320813076,1711566639436,-500.0,0.00044931,4]
[320813078,1711566639445,-5169.45,0.00044931,4]
[320813080,1711566639454,-1152.83,0.00044931,4]
[320813082,1711566639463,-6250.0,0.00045205,120]
[320813084,1711566639472,-500.0,0.00045958,4]
[320813086,1711566639483,-500.0,0.00045958,4]
[320813088,1711566639492,-500.0,0.00045958,4]
[320813090,1711566639501,-585.4,0.00045958,4]
[320813092,1711566639510,-994.98,0.00045958,4]
[320813095,1711566639519,-793.24,0.00045958,4]
[320813096,1711566639529,-849.22,0.00045958,4]
[320813098,1711566639538,-500.0,0.00045958,4]
[320813099,1711566639547,-207.71000001,0.00046,14]
[320813100,1711566639556,-1114.38,0.00046573,7]
[320813101,1711566639566,-731.16,0.00046573,4]
[320813103,1711566639575,-500.0,0.00046573,4]
[320813105,1711566639585,-500.0,0.00046573,4]
[320813107,1711566639594,-5303.37,0.0004737,4]
[320813109,1711566639602,-500.0,0.0004767,4]
[320813111,1711566639611,-500.0,0.00047671,4]
[320813113,1711566639620,-500.0,0.00047671,4]
[320813115,1711566639629,-1459.26,0.00047671,4]
[320813117,1711566639638,-1085.08,0.00047671,2]
[320813119,1711566639647,-5169.45,0.00047671,4]
[320813121,1711566639656,-1152.83,0.00047671,4]
[320813123,1711566639665,-500.0,0.00048698,4]
[320813124,1711566639674,-500.0,0.00048698,4]
[320813126,1711566639682,-491.76879244,0.00048698,4]
[320813129,1711566639691,-585.4,0.00048698,4]
[320813132,1711566639700,-994.98,0.00048698,4]
[320813135,1711566639711,-793.24,0.00048698,4]
[320813137,1711566639720,-849.22,0.00048698,4]
[320813139,1711566639730,-500.0,0.00048698,4]
[320813142,1711566639739,-1114.38,0.00049313,7]
[320813145,1711566639748,-731.16,0.00049313,4]
[320813147,1711566639757,-500.0,0.00049313,4]
[320813149,1711566639766,-500.0,0.00049313,4]
[320813152,1711566639775,-5303.37,0.00050109,120]
[320813155,1711566639786,-500.0,0.0005041,120]
[320813157,1711566639795,-637.63491302,0.00050411,120]
[320813160,1711566639805,-500.0,0.00050411,120]
[320813163,1711566639815,-1459.26,0.00050411,120]
[320813166,1711566639827,-1085.08,0.00050411,2]
[320813168,1711566639837,-4797.09672927,0.00050411,90]
[320813178,1711566639887,-372.35327073,0.00050411,90]
[320813180,1711566639897,-1152.83,0.00050411,21]
[320813181,1711566639905,-500.0,0.00051438,120]
[320813182,1711566639914,-500.0,0.00051438,120]
[320813183,1711566639924,-585.4,0.00051438,120]
[320813184,1711566639933,-994.98,0.00051438,120]
[320813186,1711566639942,-793.24,0.00051438,120]
[320813187,1711566639951,-849.22,0.00051438,120]
[320813189,1711566639960,-500.0,0.00051438,120]
[320813191,1711566639969,-731.16,0.00052052,120]
[320813193,1711566639978,-500.0,0.00052052,120]
[320813195,1711566639987,-500.0,0.00052052,120]
[320813197,1711566639996,-1114.38,0.00052053,7]
[320813199,1711566640006,-599.0,0.00052054,120]
[320813201,1711566640015,-5303.37,0.00052849,120]
[320813203,1711566640024,-510.43982422,0.00052898,4]
[320813205,1711566640033,-17058.51,0.00053,120]
[320813207,1711566640042,-500.0,0.0005315,120]
[320813209,1711566640051,-1459.26,0.0005315,120]
[320813211,1711566640060,-1085.08,0.0005315,2]
[320813213,1711566640069,-500.0,0.0005315,120]
[320813215,1711566640081,-5169.45,0.0005315,90]
[320813217,1711566640091,-1152.83,0.0005315,21]
[320813219,1711566640100,-8476.17928795,0.000539,2]
[320813220,1711566640112,-25534.42908252,0.000539,2]
[320813222,1711566640121,-155.43255527,0.00054,30]
[320813224,1711566640130,-500.0,0.00054177,120]
[320813226,1711566640141,-414.22845985,0.00054177,120]
[320813228,1711566640171,-85.77154015,0.00054177,120]
[320813229,1711566640179,-585.4,0.00054177,120]
[320813230,1711566640190,-994.98,0.00054177,120]
[320813231,1711566640199,-793.24,0.00054177,120]
[320813232,1711566640211,-849.22,0.00054177,120]
[320813233,1711566640222,-500.0,0.00054177,120]
[320813234,1711566640235,-1114.38,0.00054792,7]
[320813235,1711566640246,-731.16,0.00054792,120]
[320813236,1711566640255,-500.0,0.00054792,120]
[320813237,1711566640265,-500.0,0.00054792,120]
[320813238,1711566640276,-500.0,0.00054794,120]
[320813239,1711566640287,-500.0,0.00054794,120]
[320813240,1711566640298,-500.0,0.00054794,120]
[320813241,1711566640310,-500.0,0.00054794,120]
[320813242,1711566640321,-500.0,0.00054794,120]
[320813243,1711566640333,-500.0,0.00054794,120]
[320813244,1711566640342,-500.0,0.00054794,120]
[320813245,1711566640351,-500.0,0.00054794,120]
[320813246,1711566640359,-189.10824052,0.00054794,120]
[320813247,1711566640369,-1880.84560841,0.00054794,120]
[320813248,1711566640378,-500.0,0.00054794,120]
[320813249,1711566640388,-500.0,0.00054794,120]
[320813250,1711566640399,-500.0,0.00054794,120]
[320813251,1711566640408,-500.0,0.00054794,120]
[320813252,1711566640417,-500.0,0.00054794,120]
[320813253,1711566640426,-500.0,0.00054794,120]
[320813254,1711566640435,-500.0,0.00054794,120]
[320813255,1711566640444,-500.0,0.00054794,120]
[320813256,1711566640454,-500.0,0.00054794,2]
[320813257,1711566640463,-500.0,0.00054794,4]
[320813258,1711566640472,-500.0,0.00054794,4]
[320813259,1711566640481,-500.0,0.00054794,4]
[320813260,1711566640491,-500.0,0.00054794,4]
[320813261,1711566640501,-500.0,0.00054794,4]
[320813262,1711566640511,-500.0,0.00054794,120]
[320813263,1711566640520,-500.0,0.00054794,120]
[320813264,1711566640530,-500.0,0.00054794,120]
[320813265,1711566640538,-500.0,0.00054794,120]
[320813266,1711566640548,-500.0,0.00054794,120]
[320813267,1711566640557,-500.0,0.00054794,120]
[320813268,1711566640567,-500.0,0.00054794,120]
[320813269,1711566640578,-500.0,0.00054794,120]
[320813270,1711566640587,-500.0,0.00054794,120]
[320813271,1711566640597,-500.0,0.00054794,120]
[320813272,1711566640606,-500.0,0.00054794,120]
[320813273,1711566640617,-1915.63405268,0.00054794,120]
[320813274,1711566640633,-4084.36594732,0.00054794,120]
[320813275,1711566640643,-6000.0,0.00054794,120]
[320813276,1711566640652,-6000.0,0.00054794,120]
[320813277,1711566640661,-6000.0,0.00054794,120]
[320813278,1711566640670,-3138.12201281,0.00054794,120]
[320813279,1711566640679,-1522.50724197,0.00054794,120]
[320813280,1711566640688,-5303.37,0.00055589,120]
[320813281,1711566640697,-500.0,0.0005589,120]
[320813282,1711566640706,-1459.26,0.0005589,120]
[320813283,1711566640716,-1085.08,0.0005589,2]
[320813284,1711566640726,-588.84149812,0.0005589,120]
[320813285,1711566640736,-500.0,0.0005589,120]
[320813286,1711566640745,-5169.45,0.0005589,90]
[320813287,1711566640754,-1152.83,0.0005589,21]
[320813288,1711566640764,-1573.10814051,0.00056,120]
[320813289,1711566640774,-500.0,0.00056917,120]
[320813290,1711566640783,-500.0,0.00056917,120]
[320813291,1711566640792,-585.4,0.00056917,120]
[320813292,1711566640802,-500.0,0.00056917,120]
[320813293,1711566640811,-994.98,0.00056917,120]
[320813294,1711566640820,-500.0,0.00056917,120]
[320813295,1711566640830,-793.24,0.00056917,120]
[320813296,1711566640839,-849.22,0.00056917,120]
[320813297,1711566640848,-500.0,0.00056917,120]
[320813298,1711566640858,-172.78579841,0.00057197,120]
[320813299,1711566640867,-1114.38,0.00057532,7]
[320813300,1711566640876,-731.16,0.00057532,120]
[320813301,1711566640885,-500.0,0.00057532,120]
[320813302,1711566640895,-500.0,0.00057532,120]
[320813303,1711566640904,-832.85288093,0.00058329,120]
[320813319,1711566643574,-500.0,0.00054794,120]
[320813320,1711566643587,-500.0,0.00054794,120]
[320813321,1711566643595,-4470.51711907,0.00058329,120]
[320813322,1711566643604,-500.0,0.00058629,120]
[320813323,1711566643613,-500.0,0.0005863,120]
[320813324,1711566643622,-1459.26,0.0005863,120]
[320813325,1711566643631,-1085.08,0.0005863,2]
[320813326,1711566643641,-5169.45,0.0005863,90]
[320813327,1711566643650,-1152.83,0.0005863,21]
[320813328,1711566643660,-4495.28753293,0.000594,2]
[320813329,1711566643669,-500.0,0.00059657,120]
[320813330,1711566643678,-500.0,0.00059657,120]
[320813331,1711566643687,-585.4,0.00059657,120]
[320813332,1711566643696,-500.0,0.00059657,120]
[320813333,1711566643705,-994.98,0.00059657,120]
[320813334,1711566643714,-500.0,0.00059657,120]
[320813335,1711566643723,-793.24,0.00059657,120]
[320813336,1711566643819,-849.22,0.00059657,120]
[320813337,1711566643829,-500.0,0.00059657,120]
[320813338,1711566643840,-1500.0,0.000599,120]
[320813339,1711566643849,-1410.74307311,0.000599,2]
[320813340,1711566643858,-1956.79393674,0.00059998,4]
[320813341,1711566643867,-780.33195473,0.00059998,4]
[320813342,1711566643876,-47377.43878495,0.00059999,4]
[320813343,1711566643887,-30949.10378156,0.0006,120]
[320813344,1711566643896,-257219.88054534,0.0006,120]
[320813345,1711566643906,-55957.52579722,0.0006,120]
[320813346,1711566643915,-3071.22734544,0.0006,30]
[320813347,1711566643924,-606.5,0.0006,14]
[320813348,1711566643935,-688.44756833,0.0006,7]
[320813349,1711566643945,-304.789855,0.0006,120]
[320813350,1711566643954,-200.30022265,0.0006,120]
[320813351,1711566643963,-500.0,0.00060009,120]
[320813352,1711566643973,-1182.34,0.00060011,120]
[320813353,1711566643982,-1114.38,0.00060272,7]
[320813354,1711566643991,-731.16,0.00060272,120]
[320813355,1711566644001,-500.0,0.00060272,120]
[320813356,1711566644011,-500.0,0.00060272,120]
[320813357,1711566644020,-5303.37,0.00061068,120]
[320813358,1711566644030,-500.0,0.00061369,120]
[320813359,1711566644040,-172.72779075,0.0006137,120]
[320813360,1711566644050,-1459.26,0.0006137,120]
[320813361,1711566644060,-1085.08,0.0006137,2]
[320813362,1711566644070,-5169.45,0.0006137,90]
[320813363,1711566644079,-1152.83,0.0006137,21]
[320813364,1711566644093,-10000.0,0.00062,60]
[320813365,1711566644102,-1000.0,0.00062133,30]
[320813366,1711566644112,-500.0,0.00062396,120]
[320813367,1711566644121,-500.0,0.00062396,120]
[320813368,1711566644130,-585.4,0.00062396,120]
[320813369,1711566644139,-500.0,0.00062396,120]
[320813370,1711566644149,-994.98,0.00062396,120]
[320813371,1711566644159,-500.0,0.00062396,120]
[320813372,1711566644168,-793.24,0.00062396,120]
[320813373,1711566644178,-849.22,0.00062396,120]
[320813374,1711566644186,-500.0,0.00062396,120]
[320813375,1711566644196,-616.20648149,0.00062748,120]
[320813376,1711566644205,-1182.34,0.0006275,120]
[320813377,1711566644214,-635.27243804,0.00062813,120]
[320813378,1711566644225,-731.16,0.00063011,120]
[320813379,1711566644239,-500.0,0.00063011,120]
[320813380,1711566644248,-500.0,0.00063011,120]
[320813381,1711566644258,-1114.38,0.00063012,7]
[320813382,1711566644268,-500.0,0.00063013,120]
[320813383,1711566644278,-500.0,0.00063013,120]
[320813384,1711566644287,-500.0,0.00063013,120]
[320813385,1711566644296,-500.0,0.00063013,120]
[320813386,1711566644306,-500.0,0.00063013,120]
[320813387,1711566644315,-500.0,0.00063013,120]
[320813388,1711566644327,-525.48267334,0.00063013,120]
[320813389,1711566644339,-1000.0,0.00063647,60]
[320813390,1711566644348,-10000.0,0.000638,60]
[320813391,1711566644357,-5303.37,0.00063808,120]
[320813392,1711566644367,-6278.00679862,0.000639,120]
[320813393,1711566644377,-68325.40144595,0.00064,30]
[320813394,1711566644392,-12389.05299523,0.00064,30]
[320813395,1711566644405,-5982.12751299,0.00064,30]
[320813396,1711566644416,-1753.77996147,0.00064,30]
[320813397,1711566644900,-57.14914331,0.00064,30]
[320813398,1711566644913,-17175.88239999,0.00064,30]
[320813399,1711566644925,-5000.0,0.00064,30]
[320813400,1711566644937,-4655.48970591,0.00064,30]
[320813431,1711566646011,-591.68498278,0.00054793,4]
[320813433,1711566646021,-632.07903948,0.00054793,4]
[320813434,1711566646031,-1579.53669936,0.000599,2]
[320813436,1711566646041,-66425.86649415,0.00064,30]
[320813438,1711566646050,-1459.26,0.00064109,120]
[320813440,1711566646060,-1085.08,0.00064109,2]
[320813442,1711566646070,-500.0,0.00064109,120]
[320813444,1711566646079,-5169.45,0.00064109,90]
[320813446,1711566646091,-1152.83,0.00064109,21]
[320813448,1711566646100,-176.40213517,0.0006441,12]
[320813450,1711566646109,-5294.02239764,0.000648,90]
[320813452,1711566646118,-10000.0,0.00065,12]
[320813454,1711566646128,-16758.27388626,0.00065,120]
[320813457,1711566646137,-20406.51692946,0.00065,30]
[320813703,1711566757277,-209.88368679,0.00026999,2]
[320813704,1711566762165,-1514.39307802,0.00031231,4]
[320813705,1711566762190,-500.0,0.00031232,2]
[320813706,1711566762218,-500.0,0.00031232,2]
[320813707,1711566762245,-729.63,0.00031232,2]
[320813708,1711566762270,-538.94,0.00031233,2]
[320813709,1711566762296,-500.0,0.00031233,2]
[320813710,1711566762320,-500.0,0.00032874,2]
[320813711,1711566762345,-155.01085076,0.00033,4]
[320813712,1711566762370,-538.94,0.00033972,2]
[320813713,1711566762396,-500.0,0.00033972,2]
[320813714,1711566762420,-500.0,0.00033972,2]
[320813715,1711566762446,-423.25850547,0.00033972,2]
[320813716,1711566762472,-3314.6,0.00034999,2]
[320813717,1711566762496,-1000.0,0.00034999,7]
[320813718,1711566762520,-500.0,0.00034999,2]
[320813719,1711566762543,-500.0,0.00035614,2]
[320813720,1711566762568,-538.94,0.00036712,4]
[320813721,1711566762593,-500.0,0.00036712,4]
[320813722,1711566762616,-500.0,0.00036712,4]
[320813723,1711566762642,-3314.6,0.00037739,4]
[320813724,1711566762665,-1000.0,0.00037739,7]
[320813725,1711566762688,-500.0,0.00038354,4]
[320813726,1711566762713,-500.0,0.00039451,4]
[320813727,1711566762736,-538.94,0.00039452,4]
[320813728,1711566762760,-500.0,0.00039452,4]
[320813729,1711566762794,729.63,0.00033972,2]
[320813730,1711566762827,4163.11756575,0.00035,4]
[320813731,1711566821612,-1000.0,0.00031232,2]
[320813732,1711566821643,-155.00930056,0.00033,4]
[320813733,1711566821673,-1000.0,0.00033972,2]
[320813734,1711566821701,-462.73220732,0.00034999,4]
[320813735,1711566821729,-2741.77423912,0.00035,4]
[320813736,1711566821760,-666.05455207,0.00035,2]
[320813737,1711566821789,-593.68284182,0.00035,2]
[320813738,1711566821815,-500.0,0.00035,4]
[320813739,1711566821839,-729.63,0.00036712,4]
[320813740,1711566821865,-1000.0,0.00036712,2]
[320813741,1711566821892,-155.00930056,0.0003945,4]
[320813742,1711566821917,-2176.98656217,0.0003945,2]
[320813743,1711566821943,-729.63,0.00039451,4]
[320813744,1711566821969,-1000.0,0.00039451,2]
[320813745,1711566826320,-3314.6,0.00040479,4]
[320813746,1711566826346,-1000.0,0.00040479,7]
[320813747,1711566826373,-500.0,0.00041093,4]
[320813748,1711566826399,-1053.68488043,0.0004219,4]
[320813749,1711566826423,-683.98401175,0.0004219,2]
[320813750,1711566826448,-500.0,0.00042191,4]
[320813751,1711566826472,-729.63,0.00042191,4]
[320813752,1711566826497,-1000.0,0.00042191,2]
[320813753,1711566826523,-538.94,0.00042192,4]
[320813754,1711566826561,-500.0,0.00042192,4]
[320813755,1711566826592,-166.666666,0.00042343,2]
[320813756,1711566826625,-201.23992292,0.00043208,30]
[320813757,1711566826653,-3314.6,0.00043218,4]
[320813758,1711566826685,-1000.0,0.00043218,7]
[320813759,1711566826715,-166.666666,0.00043497,2]
[320813760,1711566826746,-6250.0,0.00043653,120]
[320813761,1711566826776,-500.0,0.00043833,4]
[320813762,1711566826806,-166.666666,0.00044651,2]
[320813763,1711566826843,-538.94,0.00044931,4]
[320813764,1711566826874,-500.0,0.00044931,4]
[320813765,1711566826904,-500.0,0.00044931,4]
[320813766,1711566826933,-729.63,0.00044931,4]
[320813767,1711566826963,-1000.0,0.00044931,2]
[320813768,1711566826997,-144.7511869,0.00045804,4]
[320813769,1711566827031,500.0,0.0003093,2]
[320813770,1711566827063,500.0,0.0003367,2]
[320813771,1711566827128,500.0,0.0003641,4]
[320813772,1711566827539,576.25246977,0.00039149,4]
[320813773,1711566834051,500.0,0.00035,4]
[320813775,1711566838531,155.00930056,0.00033,4]
[320813777,1711566839583,500.0,0.00031232,2]
[320813778,1711566839876,500.0,0.00033972,2]
[320813779,1711566840197,500.0,0.00036712,4]
[320813780,1711566840524,500.0,0.00039451,4]
[320813783,1711566854553,155.00930056,0.00033,4]
[320813784,1711566859998,500.0,0.00039149,4]
[320813785,1711566865944,2569.21,0.00031232,2]
[320813786,1711566866317,2569.21,0.00033972,2]
[320813787,1711566866581,1564.79992549,0.00036712,4]
[320813788,1711567146020,2000.0,0.00025851,2]
[320813789,1711567209729,681.18951663,0.00026991,2]
[320813790,1711567210859,623.05947583,0.0002834,2]
[320813791,1711567431093,165.976935,0.00029729,2]
[320813797,1711567688228,21319.89038575,0.00029822,2]
[320813817,1711567832102,-340.06310866,0.00027722,2]
[320813818,1711567832116,-25.12257301,0.00027722,2]
[320813819,1711567832127,-3511.25418873,0.00029814,2]
[320813820,1711567832137,-2751.52266457,0.00029815,2]
[320813821,1711567832147,-1620.29999842,0.00029816,2]
[320813822,1711567832163,-192.20239395,0.00029816,2]
[320813823,1711567832174,-270.67850086,0.00029817,2]
[320813824,1711567832185,-155.00775039,0.00029817,2]
[320813826,1711567832195,-1127.14113379,0.00029817,2]
[320813827,1711567832205,-214.8103191,0.00029817,2]
[320813829,1711567832215,-155.00775039,0.00029817,2]
[320813832,1711567832225,-3580.10961425,0.00029822,2]
[320813835,1711567832235,-598.48601028,0.00030167,2]
[320813838,1711567832245,-3464.29858752,0.00030168,2]
[320813841,1711567832255,-255.47464944,0.00030264,4]
[320813845,1711567832265,-375.57014694,0.00030267,2]
[320813849,1711567832274,-545.13326009,0.00030269,4]
[320813852,1711567832284,-931.6812301,0.00030284,4]
[320813855,1711567832293,-155.2921671,0.00030284,4]
[320813858,1711567832303,-6250.0,0.00030285,120]
[320813861,1711567832312,-3646.06,0.0003093,2]
[320813863,1711567832321,-1000.0,0.00031232,7]
[320813865,1711567832332,-365.18568167,0.00032722,2]
[320813866,1711567832342,-155.00930056,0.00033,4]
[320813869,1711567832351,-3646.06,0.0003367,2]
[320813872,1711567832360,-1000.0,0.00033972,7]
[320813875,1711567832370,-462.73220732,0.00034,4]
[320813877,1711567832379,-6904.89180487,0.00035,4]
[320813880,1711567832388,-666.05455207,0.00035,2]
[320813883,1711567832397,-593.68284182,0.00035,2]
[320813886,1711567832409,-155.00930056,0.00035,4]
[320813889,1711567832418,-3945.7303599,0.00035,30]
[320814236,1711567838135,-15300.19029611,0.00035,30]
[320814238,1711567838145,-389.75509975,0.00035332,7]
[320814240,1711567838153,-6250.0,0.00035333,120]
[320814241,1711567838164,-1383.49000396,0.00036345,2]
[320814243,1711567838172,-500.0,0.00036711,4]
[320814244,1711567838181,-500.0,0.00036711,4]
[320814245,1711567838191,-500.0,0.00036711,4]
[320814246,1711567838200,-500.0,0.00036711,4]
[320814247,1711567838209,-972.84,0.00036711,4]
[320814248,1711567838218,-500.0,0.00036711,4]
[320814249,1711567838228,-1000.0,0.00036711,2]
[320814251,1711567838237,-1000.0,0.00036712,7]
[320814252,1711567838246,-365.18568167,0.00037722,2]
[320814253,1711567838256,-268.33631734,0.00039149,4]
[320814254,1711567838265,-500.0,0.0003945,4]
[320814255,1711567838275,-1000.0,0.00039451,7]
[320814256,1711567838284,-500.0,0.00039451,4]
[320814257,1711567838293,-500.0,0.00039451,4]
[320814258,1711567838304,-500.0,0.00039451,4]
[320814259,1711567838313,-972.84,0.00039451,4]
[320814260,1711567838323,-500.0,0.00039451,4]
[320814261,1711567838332,-1000.0,0.00039451,2]
[320814262,1711567838342,-6250.0,0.0004038,120]
[320814263,1711567838350,-500.0,0.0004219,4]
[320814264,1711567838359,-1000.0,0.00042191,7]
[320814265,1711567838369,-500.0,0.00042191,4]
[320814266,1711567838378,-500.0,0.00042191,4]
[320814267,1711567838387,-500.0,0.00042191,4]
[320814268,1711567838398,-972.84,0.00042191,4]
[320814269,1711567838407,-500.0,0.00042191,4]
[320814270,1711567838420,-1000.0,0.00042191,2]
[320814271,1711567838430,-533.03166032,0.00044627,120]
[320814272,1711567838440,-408.52337801,0.00044627,120]
[320814273,1711567838450,-500.0,0.00044627,120]
[320814274,1711567838459,-383.60291451,0.00044627,120]
[320814275,1711567838469,-500.0,0.00044627,120]
[320814276,1711567838478,-500.0,0.00044627,120]
[320814277,1711567838487,-370.72715213,0.00044627,120]
[320814278,1711567838508,-500.0,0.00044627,120]
[320814279,1711567838520,-500.0,0.00044628,4]
[320814280,1711567838530,-500.0,0.00044628,4]
[320814281,1711567838541,-3797.67,0.00044628,4]
[320814282,1711567838554,-500.0,0.00044628,4]
[320814283,1711567838565,-864.63,0.00044628,4]
[320814284,1711567838577,-477.63994533,0.00044628,4]
[320814285,1711567838588,-500.0,0.00044628,4]
[320814286,1711567838598,-652.95,0.00044628,4]
[320814287,1711567838608,-500.0,0.00044628,4]
[320814288,1711567838620,-502.98,0.00044628,4]
[320814289,1711567838634,-500.0,0.0004493,4]
[320814290,1711567838647,-500.0,0.0004493,4]
[320814291,1711567838658,-500.0,0.0004493,4]
[320814292,1711567838669,-972.84,0.0004493,4]
[320814293,1711567838680,-500.0,0.0004493,4]
[320814294,1711567838691,-1000.0,0.0004493,2]
[320814295,1711567838703,-500.0,0.0004493,4]
[320814296,1711567838713,-1000.0,0.00044931,7]
[320814297,1711567838725,-6250.0,0.00045428,120]
[320814298,1711567838734,-294.04964277,0.00045804,4]
[320814299,1711567838744,-166.666666,0.00046133,2]
[320814300,1711567838754,-500.0,0.00047368,4]
[320814301,1711567838763,-500.0,0.00047368,4]
[320814302,1711567838773,-3797.67,0.00047368,4]
[320814303,1711567838783,-500.0,0.00047368,4]
[320814304,1711567838793,-864.63,0.00047368,4]
[320814305,1711567838803,-500.0,0.00047368,4]
[320814306,1711567838814,-652.95,0.00047368,4]
[320814307,1711567838824,-500.0,0.00047368,4]
[320814308,1711567838835,-502.98,0.00047368,4]
[320814309,1711567838846,-166.666666,0.0004739,2]
[320814310,1711567838857,-339.12535874,0.00047669,4]
[320814311,1711567838867,-198.53290104,0.00047669,4]